fUST/lending_fUST_20250616
["ID","MTS","AMOUNT","RATE_DAILY","PERIOD"]
[366088747,1750057070860,-300.0,0.00019072,2]
[366088748,1750057070884,-500.0,0.00019072,2]
[366088749,1750057070908,-500.0,0.00019072,2]
[366088750,1750057070933,-500.0,0.00019072,2]
[366088751,1750057070956,-500.0,0.00019072,2]
[366088752,1750057070979,-614.42163174,0.00019072,2]
[366088753,1750057071004,-500.0,0.00019072,2]
[366088754,1750057071032,-500.0,0.00019072,2]
[366088755,1750057071058,-500.0,0.00019072,2]
[366088756,1750057071085,-1742.99033384,0.00019072,2]
[366088757,1750057071112,-1786.56509217,0.00019072,2]
[366088758,1750057071137,-1786.56509217,0.00019072,2]
[366088759,1750057071163,-1786.56509217,0.00019072,2]
[366088760,1750057071308,-1786.56509217,0.00019072,2]
[366088761,1750057071335,-1786.56509217,0.00019072,2]
[366088762,1750057071363,-1786.56509217,0.00019072,2]
[366088763,1750057071391,-1786.56509217,0.00019072,2]
[366088764,1750057071416,-1786.56509217,0.00019072,2]
[366088765,1750057071445,-1786.56509217,0.00019072,2]
[366088766,1750057071469,-1786.56509217,0.00019072,2]
[366088767,1750057071494,-1786.56509217,0.00019072,2]
[366088768,1750057071516,-500.0,0.00019072,2]
[366088769,1750057071540,-500.0,0.00019072,2]
[366088770,1750057071563,-500.0,0.00019072,2]
[366088771,1750057071586,-500.0,0.00019072,2]
[366088772,1750057071608,-500.0,0.00019072,2]
[366088773,1750057071632,-500.0,0.00019072,2]
[366088774,1750057071654,-500.0,0.00019072,2]
[366088775,1750057071678,-500.0,0.00019072,2]
[366088776,1750057071700,-500.0,0.00019072,2]
[366088777,1750057071721,-500.0,0.00019072,2]
[366088778,1750057071747,-500.0,0.00019072,2]
[366088779,1750057071769,-195.72303564,0.00019072,2]
[366088780,1750057071793,-500.0,0.00019072,2]
[366088781,1750057071816,-604.81175694,0.00019072,2]
[366088782,1750057071840,-500.0,0.00019072,2]
[366088783,1750057071863,-604.81175694,0.00019072,2]
[366088784,1750057071886,-497.22315783,0.00019072,2]
[366088785,1750057071910,-604.81175694,0.00019072,2]
[366088786,1750057071933,-500.0,0.00019072,2]
[366088787,1750057071957,-500.0,0.00019072,2]
[366088788,1750057071982,-604.81175694,0.00019072,2]
[366088789,1750057072005,-500.0,0.00019072,2]
[366088790,1750057072029,-500.0,0.00019072,2]
[366088791,1750057072054,-604.81175694,0.00019072,2]
[366088792,1750057072078,-500.0,0.00019072,2]
[366088793,1750057072103,-6.43410579,0.00019072,2]
[366088794,1750057072385,2106.9596124,0.0001822,2]
[366088795,1750057092775,8595.0365537,0.00018077,2]
[366088796,1750057144663,659.8261518,0.000181,2]
[366088797,1750057147069,972.21560051,0.00018971,2]
[366088798,1750057215503,8336.69,0.00025026,60]
[366088799,1750057228836,860.86528776,0.00018218,2]
[366088800,1750057228862,177.01121264,0.00018218,2]
[366088803,1750057421451,374.78572022,0.0001897,2]
[366088804,1750057489928,870.42554344,0.00018968,2]
[366088828,1750057600314,2921.49138065,0.000189,2]
[366088829,1750057612080,-1267.58972028,0.00019067,2]
[366088830,1750057612107,-1267.58972028,0.00019067,2]
[366088831,1750057612139,-1267.58972028,0.00019067,2]
[366088832,1750057612166,-1267.58972028,0.00019067,2]
[366088833,1750057612193,-1267.58972028,0.00019067,2]
[366088834,1750057612219,-1267.58972028,0.00019067,2]
[366088835,1750057612245,-1267.58972028,0.00019067,2]
[366088836,1750057612271,-1267.58972028,0.00019067,2]
[366088837,1750057612296,-1267.58972028,0.00019067,2]
[366088838,1750057612322,-1267.58972028,0.00019067,2]
[366088839,1750057612347,-1267.58972028,0.00019067,2]
[366088840,1750057612374,-1267.58972028,0.00019067,2]
[366088841,1750057612403,-1267.58972028,0.00019067,2]
[366088842,1750057612430,-1267.58972028,0.00019067,2]
[366088843,1750057612455,-486.76223226,0.00019067,2]
[366088844,1750057612478,-457.15795908,0.00019067,2]
[366088845,1750057612504,-606.32305983,0.00019067,2]
[366088846,1750057612531,-500.0,0.00019067,2]
[366088847,1750057612560,-500.0,0.00019067,2]
[366088848,1750057612587,-500.0,0.00019067,2]
[366088849,1750057612614,-500.0,0.00019067,2]
[366088850,1750057612641,-500.0,0.00019067,2]
[366088851,1750057612665,-449.57230356,0.00019067,2]
[366088852,1750057612690,-500.0,0.00019067,2]
[366088853,1750057612714,-500.0,0.00019067,2]
[366088854,1750057612737,-500.0,0.00019067,2]
[366088855,1750057612761,-500.0,0.00019067,2]
[366088856,1750057612783,-500.0,0.00019067,2]
[366088857,1750057612807,-500.0,0.00019067,2]
[366088858,1750057612832,-500.0,0.00019067,2]
[366088859,1750057612856,-253.92836135,0.00019067,2]
[366088862,1750057642321,9509.44614305,0.0001807,2]
[366088863,1750057642346,13853.16,0.0001807,2]
[366088864,1750057642371,1537.39385695,0.0001807,2]
[366088865,1750057644439,-300.0,0.00019066,2]
[366088866,1750057644464,-246.07163865,0.00019067,2]
[366088867,1750057644488,-500.0,0.00019067,2]
[366088868,1750057644512,-500.0,0.00019067,2]
[366088869,1750057644537,-500.0,0.00019067,2]
[366088870,1750057644566,-500.0,0.00019067,2]
[366088871,1750057644591,-500.0,0.00019067,2]
[366088872,1750057644615,-500.0,0.00019067,2]
[366088873,1750057644641,-500.0,0.00019067,2]
[366088874,1750057644665,-179.72231579,0.00019067,2]
[366088875,1750057644689,-500.0,0.00019067,2]
[366088876,1750057644714,-500.0,0.00019067,2]
[366088877,1750057644738,-500.0,0.00019067,2]
[366088878,1750057644762,-500.0,0.00019067,2]
[366088879,1750057644787,-500.0,0.00019067,2]
[366088880,1750057644810,-500.0,0.00019067,2]
[366088881,1750057644833,-500.0,0.00019067,2]
[366088882,1750057644858,-500.0,0.00019067,2]
[366088883,1750057644880,-500.0,0.00019067,2]
[366088884,1750057644903,-500.0,0.00019067,2]
[366088885,1750057644927,-500.0,0.00019067,2]
[366088886,1750057644952,-500.0,0.00019067,2]
[366088887,1750057644974,-500.0,0.00019067,2]
[366088888,1750057644997,-500.0,0.00019067,2]
[366088889,1750057645021,-500.0,0.00019067,2]
[366088890,1750057645045,-274.20604556,0.00019067,2]
[366088912,1750057723445,170.796999,0.00013699,2]
[366088916,1750057751062,761.62235051,0.00018965,2]
[366088920,1750057761985,299.82857616,0.00018968,2]
[366088927,1750057810150,188.4287573,0.000189,2]
[366088991,1750057833039,-300.0,0.00019064,2]
[366088993,1750057833050,-300.0,0.00019064,2]
[366088994,1750057833060,-1200.0,0.00019064,2]
[366088996,1750057833071,-1095.12715944,0.00019064,2]
[366088998,1750057833082,-1095.12715944,0.00019064,2]
[366089000,1750057833092,-1095.12715944,0.00019064,2]
[366089002,1750057833103,-1095.12715944,0.00019064,2]
[366089004,1750057833114,-654.47586772,0.00019064,2]
[366089685,1750057840873,-440.65129172,0.00019064,2]
[366089688,1750057840884,-1095.12715944,0.00019064,2]
[366089691,1750057840894,-191.1480413,0.00019064,2]
[366089967,1750057843849,-903.97911814,0.00019064,2]
[366089968,1750057843859,-347.21316517,0.00019064,2]
[366089969,1750057843872,-421.83972121,0.00019064,2]
[366089971,1750057843883,-326.07427306,0.00019064,2]
[366089973,1750057843894,-1095.12715944,0.00019064,2]
[366089974,1750057843903,-1095.12715944,0.00019064,2]
[366089975,1750057843913,-1095.12715944,0.00019064,2]
[366089976,1750057843923,-1095.12715944,0.00019064,2]
[366089977,1750057843932,-1095.12715944,0.00019064,2]
[366089978,1750057843943,-1095.12715944,0.00019064,2]
[366089979,1750057843953,-1095.12715944,0.00019064,2]
[366089980,1750057843964,-216.61914484,0.00019064,2]
[366089981,1750057843973,-500.0,0.00019064,2]
[366089982,1750057843983,-500.0,0.00019064,2]
[366089983,1750057843993,-500.0,0.00019064,2]
[366089985,1750057844003,-500.0,0.00019064,2]
[366089987,1750057844014,-500.0,0.00019064,2]
[366089989,1750057844024,-500.0,0.00019064,2]
[366089991,1750057844033,-500.0,0.00019064,2]
[366089993,1750057844043,-500.0,0.00019064,2]
[366089995,1750057844053,-500.0,0.00019064,2]
[366089997,1750057844063,-500.0,0.00019064,2]
[366089999,1750057844072,-500.0,0.00019064,2]
[366090001,1750057844082,-500.0,0.00019064,2]
[366090003,1750057844091,-500.0,0.00019064,2]
[366090005,1750057844101,-471.18679057,0.00019064,2]
[366090006,1750057844111,-500.0,0.00019064,2]
[366090007,1750057844120,-500.0,0.00019064,2]
[366090008,1750057844130,-500.0,0.00019064,2]
[366090009,1750057844140,-500.0,0.00019064,2]
[366090010,1750057844149,-500.0,0.00019064,2]
[366090011,1750057844159,-500.0,0.00019064,2]
[366090012,1750057844168,-500.0,0.00019064,2]
[366090014,1750057844180,-500.0,0.00019064,2]
[366090016,1750057844200,-500.0,0.00019064,2]
[366090018,1750057844219,-500.0,0.00019064,2]
[366090019,1750057844239,-500.0,0.00019064,2]
[366090021,1750057844260,-500.0,0.00019064,2]
[366090023,1750057844270,-500.0,0.00019064,2]
[366090025,1750057844280,-500.0,0.00019064,2]
[366090027,1750057844291,-500.0,0.00019064,2]
[366090029,1750057844301,-500.0,0.00019064,2]
[366090031,1750057844311,-500.0,0.00019064,2]
[366090033,1750057844320,-500.0,0.00019064,2]
[366090035,1750057844330,-500.0,0.00019064,2]
[366090037,1750057844339,-500.0,0.00019064,2]
[366090039,1750057844349,-500.0,0.00019064,2]
[366090040,1750057844359,-500.0,0.00019064,2]
[366090041,1750057844369,-500.0,0.00019064,2]
[366090042,1750057844378,-226.69711292,0.00019064,2]
[366090043,1750057844388,-500.0,0.00019064,2]
[366090044,1750057844398,-500.0,0.00019064,2]
[366090046,1750057844407,-500.0,0.00019064,2]
[366090047,1750057844418,-500.0,0.00019064,2]
[366090049,1750057844427,-500.0,0.00019064,2]
[366090051,1750057844438,-500.0,0.00019064,2]
[366090053,1750057844448,-500.0,0.00019064,2]
[366090055,1750057844458,-500.0,0.00019064,2]
[366090057,1750057844468,-500.0,0.00019064,2]
[366090059,1750057844478,-500.0,0.00019064,2]
[366090060,1750057844488,-500.0,0.00019064,2]
[366090062,1750057844497,-50000.0,0.00019065,2]
[366090064,1750057844507,-300.0,0.00019067,2]
[366090066,1750057844517,-227.0,0.00019067,2]
[366090068,1750057844527,-4310.82,0.00019067,2]
[366090070,1750057844537,-155.0,0.00019067,2]
[366090072,1750057844548,-237.66302639,0.00019068,2]
[366090074,1750057844557,-151.0,0.00019068,2]
[366090076,1750057844567,-151.0,0.00019068,2]
[366090078,1750057844577,-151.28791323,0.00019068,2]
[366090079,1750057844586,-500.0,0.0001907,2]
[366090081,1750057844597,-500.0,0.0001907,2]
[366090083,1750057844611,-459.08879744,0.0001907,2]
[366090085,1750057844621,-151.45049726,0.0001907,2]
[366090087,1750057844630,-160.0,0.0001907,2]
[366090089,1750057844642,-456.24207713,0.00019072,2]
[366090091,1750057844653,-501.68685801,0.00019073,2]
[366090092,1750057844663,-638.99716648,0.00019073,2]
[366090094,1750057844673,-160.0,0.00019078,2]
[366090096,1750057844683,-254.42936742,0.00019095,2]
[366090098,1750057844692,-151.0,0.00019095,2]
[366090099,1750057844702,-200.57038776,0.00019123,2]
[366090101,1750057844711,-537.978401,0.00019125,2]
[366090103,1750057844721,-840.33,0.00019168,3]
[366090105,1750057844732,-500.0,0.00019178,2]
[366090107,1750057844742,-500.0,0.00019178,2]
[366090109,1750057844751,-543.83075659,0.00019178,2]
[366090111,1750057844761,-500.0,0.00019178,2]
[366090113,1750057844770,-500.0,0.00019178,2]
[366090115,1750057844780,-500.0,0.00019178,2]
[366090116,1750057844790,-500.0,0.00019178,2]
[366090118,1750057844799,-500.0,0.00019178,2]
[366090120,1750057844809,-500.0,0.00019178,2]
[366090122,1750057844819,-500.0,0.00019178,2]
[366090124,1750057844829,-500.0,0.00019178,2]
[366090126,1750057844839,-500.0,0.00019178,2]
[366090128,1750057844849,-500.0,0.00019178,2]
[366090130,1750057844859,-500.0,0.00019178,2]
[366090132,1750057844868,-500.0,0.00019178,2]
[366090134,1750057844879,-500.0,0.00019178,2]
[366090136,1750057844889,-500.0,0.00019178,2]
[366090138,1750057844898,-500.0,0.00019178,2]
[366090140,1750057844908,-500.0,0.00019178,2]
[366090141,1750057844918,-500.0,0.00019178,2]
[366090143,1750057844928,-500.0,0.00019178,2]
[366090145,1750057844938,-500.0,0.00019178,2]
[366090147,1750057844949,-500.0,0.00019178,2]
[366090149,1750057844958,-589.68580632,0.00019178,2]
[366090151,1750057844968,-500.0,0.00019178,2]
[366090153,1750057844977,-500.0,0.00019178,2]
[366090155,1750057844987,-500.0,0.00019178,2]
[366090157,1750057844997,-10082.3314516,0.00019178,2]
[366090159,1750057845006,-184.886818,0.00019178,2]
[366090161,1750057845016,-299.82857614,0.00019745,2]
[366090163,1750057845025,-761.62235045,0.00019818,2]
[366090164,1750057845035,-179.78425889,0.00019917,2]
[366090167,1750057845045,-4579.92018546,0.00019983,2]
[366090168,1750057845055,-152.054922,0.00019983,2]
[366090170,1750057845064,-154.234901,0.00019983,2]
[366090172,1750057845075,-163.637001,0.00019983,2]
[366090174,1750057845086,-151.0,0.00019983,2]
[366090176,1750057845097,-151.0,0.00019983,2]
[366090178,1750057845106,-200.0,0.0002,2]
[366090180,1750057845116,-200.0,0.0002,2]
[366090182,1750057845125,-152.21406166,0.0002,2]
[366090184,1750057845134,-170.796999,0.00020187,2]
[366090185,1750057845144,-166.0,0.00020274,2]
[366090187,1750057845153,-421.55224419,0.000203,3]
[366090189,1750057845162,-421.55224414,0.000203,3]
[366090191,1750057845172,-162.7938292,0.00020356,2]
[366090193,1750057845182,-160.0,0.0002044,2]
[366090195,1750057845192,-299.82857614,0.00020522,2]
[366090197,1750057845202,-182.32,0.00020528,2]
[366090199,1750057845212,-540.01155822,0.00020547,2]
[366090201,1750057845222,-761.62235045,0.00020671,2]
[366090203,1750057845232,-420.0,0.00020779,2]
[366090205,1750057845242,-420.0,0.00020779,2]
[366090207,1750057845252,-420.0,0.00020781,2]
[366090209,1750057845262,-710.4,0.000208,2]
[366090211,1750057845272,-2709.85,0.000208,2]
[366090213,1750057845282,-425.50085831,0.00020822,2]
[366090214,1750057845291,-151.0,0.00020873,2]
[366090216,1750057845302,-151.0,0.00020873,2]
[366090218,1750057845312,-167.565203,0.00020873,2]
[366090220,1750057845321,-1680.0,0.0002088,2]
[366090222,1750057845332,-349.2656946,0.000209,2]
[366090224,1750057845341,-1452.64,0.00021104,2]
[366090226,1750057845352,-425.50085831,0.00021222,2]
[366090228,1750057845362,-299.82857614,0.00021299,2]
[366090230,1750057845371,-761.62235045,0.00021524,2]
[366090232,1750057845381,-425.50085831,0.00021524,2]
[366090234,1750057845391,-252.02808329,0.0002176,2]
[366090236,1750057845401,-2008.35106,0.00021799,2]
[366090238,1750057845411,-5000.0,0.000218,6]
[366090240,1750057845420,-160.0,0.0002181,2]
[366090242,1750057845430,-2078.92659781,0.00021817,2]
[366090243,1750057845440,-151.0,0.00021819,2]
[366090245,1750057845450,-151.0,0.00021819,2]
[366090247,1750057845460,-151.0,0.00021819,2]
[366090249,1750057845469,-151.0,0.00021819,2]
[366090251,1750057845479,-151.0,0.00021819,2]
[366090252,1750057845489,-425.50085831,0.00021819,2]
[366090254,1750057845499,-12537.89035583,0.00021844,2]
[366090256,1750057845509,-160.0,0.00021844,2]
[366090258,1750057845519,-160.0,0.00021844,2]
[366090260,1750057845529,-845.4146947,0.00021844,2]
[366090262,1750057845539,-152.442833,0.00021916,2]
[366090263,1750057845548,-151.0,0.00021916,2]
[366090265,1750057845558,-151.0,0.00021916,2]
[366090267,1750057845568,-151.0,0.00021916,2]
[366090269,1750057845578,-151.0,0.00021917,2]
[366090271,1750057845587,-431.10029842,0.00021917,4]
[366090273,1750057845598,-460.0,0.00021917,4]
[366090275,1750057845610,-460.0,0.00021917,4]
[366090277,1750057845620,-151.0,0.00021917,2]
[366090279,1750057845629,-451.02624433,0.00021917,4]
[366090281,1750057845640,-460.0,0.00021917,4]
[366090282,1750057845650,-460.0,0.00021917,4]
[366090284,1750057845660,-460.0,0.00021917,4]
[366090286,1750057845673,-460.0,0.00021917,4]
[366090288,1750057845682,-460.0,0.00021917,4]
[366090290,1750057845692,-151.0,0.00021917,2]
[366090292,1750057845701,-441.85624888,0.00021917,4]
[366090294,1750057845712,-151.0,0.00021917,2]
[366090296,1750057845721,-151.0,0.00021917,2]
[366090298,1750057845731,-460.0,0.00021917,4]
[366090300,1750057845740,-154.454846,0.00021917,2]
[366090302,1750057845750,-436.39064451,0.00021917,4]
[366090304,1750057845760,-460.0,0.00021917,4]
[366090306,1750057845770,-460.0,0.00021917,4]
[366090308,1750057845781,-345.65580933,0.00021917,4]
[366090310,1750057845791,-460.0,0.00021917,4]
[366090312,1750057845801,-460.0,0.00021917,4]
[366090313,1750057845810,-463.64604185,0.00021917,4]
[366090315,1750057845820,-460.0,0.00021917,4]
[366090317,1750057845830,-156.352604,0.00021917,2]
[366090319,1750057845839,-577.78141999,0.00021917,4]
[366090321,1750057845849,-441.02964113,0.00021917,4]
[366090323,1750057845858,-460.0,0.00021917,4]
[366090325,1750057845868,-460.0,0.00021917,4]
[366090327,1750057845878,-430.0,0.00021917,4]
[366090329,1750057845888,-464.36276094,0.00021917,4]
[366090331,1750057845899,-460.0,0.00021917,4]
[366090333,1750057845909,-460.0,0.00021917,4]
[366090335,1750057845918,-192.1356873,0.00021917,4]
[366090336,1750057845928,-439.6242845,0.00021917,4]
[366090338,1750057845938,-461.72819931,0.00021917,4]
[366090340,1750057845948,-465.62698204,0.00021917,4]
[366090342,1750057845957,-460.0,0.00021917,4]
[366090344,1750057845967,-460.0,0.00021917,4]
[366090346,1750057845978,-460.0,0.00021917,4]
[366090348,1750057845988,-460.0,0.00021917,4]
[366090350,1750057845998,-460.0,0.00021917,4]
[366090352,1750057846007,-441.8331499,0.00021917,4]
[366090353,1750057846017,-403.9576002,0.00021917,4]
[366090355,1750057846028,-415.25017625,0.00021917,4]
[366090357,1750057846038,-315.33484358,0.00021917,4]
[366090358,1750057846048,-460.0,0.00021917,4]
[366090359,1750057846058,-460.0,0.00021917,4]
[366090360,1750057846068,-151.486417,0.00021917,2]
[366090361,1750057846077,-460.0,0.00021917,4]
[366090362,1750057846087,-151.0,0.00021917,2]
[366090363,1750057846097,-460.0,0.00021917,4]
[366090364,1750057846106,-460.0,0.00021917,4]
[366090365,1750057846116,-460.0,0.00021917,4]
[366090366,1750057846126,-460.0,0.00021917,4]
[366090367,1750057846135,-460.0,0.00021917,4]
[366090368,1750057846146,-460.0,0.00021917,4]
[366090369,1750057846156,-460.0,0.00021917,4]
[366090370,1750057846165,-460.0,0.00021917,4]
[366090371,1750057846178,-152.130573,0.00021917,2]
[366090372,1750057846188,-464.87453939,0.00021917,4]
[366090373,1750057846198,-472.23344519,0.00021917,4]
[366090374,1750057846207,-461.23746129,0.00021917,4]
[366090375,1750057846216,-372.613443,0.00021917,2]
[366090376,1750057846226,-294.162358,0.00021917,2]
[366090377,1750057846235,-464.21343937,0.00021917,4]
[366090378,1750057846245,-372.613443,0.00021917,2]
[366090379,1750057846255,-500.0,0.00021917,4]
[366090380,1750057846264,-460.0,0.00021917,4]
[366090381,1750057846274,-460.0,0.00021917,4]
[366090382,1750057846283,-410.68672014,0.00021917,4]
[366090383,1750057846293,-460.0,0.00021917,4]
[366090384,1750057846303,-246.78317307,0.00021917,4]
[366090385,1750057846312,-432.54145456,0.00021917,4]
[366090386,1750057846322,-460.47154529,0.00021917,4]
[366090387,1750057846331,-465.90149685,0.00021917,4]
[366090388,1750057846340,-460.0,0.00021917,4]
[366090389,1750057846350,-409.29633526,0.00021917,4]
[366090390,1750057846359,-460.0,0.00021917,4]
[366090391,1750057846369,-498.508827,0.00021917,4]
[366090392,1750057846378,-460.0,0.00021917,4]
[366090393,1750057846388,-460.0,0.00021917,4]
[366090394,1750057846398,-151.0,0.00021917,2]
[366090395,1750057846407,-462.11496876,0.00021917,4]
[366090396,1750057846417,-441.40922892,0.00021917,4]
[366090397,1750057846564,-460.0,0.00021917,4]
[366090398,1750057846574,-460.0,0.00021917,2]
[366090399,1750057846584,-457.30895928,0.00021917,4]
[366090400,1750057846594,-460.0,0.00021917,4]
[366090401,1750057846608,-472.96696318,0.00021917,4]
[366090402,1750057846618,-449.45970364,0.00021917,4]
[366090403,1750057846628,-460.0,0.00021917,4]
[366090404,1750057846639,-464.92893113,0.00021917,4]
[366090405,1750057846648,-439.45147197,0.00021917,4]
[366090406,1750057846658,-500.0,0.00021917,4]
[366090407,1750057846668,-460.0,0.00021917,4]
[366090408,1750057846679,-462.88530206,0.00021917,4]
[366090410,1750057846689,-460.0,0.00021917,4]
[366090412,1750057846698,-443.03314555,0.00021917,4]
[366090414,1750057846708,-460.0,0.00021917,4]
[366090416,1750057846718,-151.0,0.00021917,2]
[366090418,1750057846727,-460.0,0.00021917,4]
[366090420,1750057846737,-460.0,0.00021917,4]
[366090422,1750057846747,-444.76855981,0.00021917,4]
[366090424,1750057846756,-440.96250975,0.00021917,4]
[366090426,1750057846766,-460.0,0.00021917,4]
[366090428,1750057846775,-460.0,0.00021917,4]
[366090430,1750057846784,-431.49189383,0.00021917,4]
[366090432,1750057846794,-460.0,0.00021917,4]
[366090434,1750057846804,-272.39751699,0.00021917,4]
[366090436,1750057846813,-151.0,0.00021917,2]
[366090438,1750057846823,-406.6684033,0.00021917,4]
[366090440,1750057846833,-210.415652,0.00021917,2]
[366090442,1750057846842,-460.0,0.00021917,4]
[366090444,1750057846852,-404.08796521,0.00021917,4]
[366090446,1750057846862,-210.415652,0.00021917,2]
[366090448,1750057846871,-460.0,0.00021917,4]
[366090450,1750057846881,-151.595781,0.00021917,2]
[366090452,1750057846890,-293.33353439,0.00021917,4]
[366090454,1750057846900,-153.011059,0.00021917,2]
[366090456,1750057846910,-470.57492057,0.00021917,4]
[366090458,1750057846920,-564.18170117,0.00021917,4]
[366090460,1750057846929,-151.0,0.00021917,2]
[366090462,1750057846939,-440.02075745,0.00021917,4]
[366090464,1750057846948,-450.3479796,0.00021917,4]
[366090466,1750057846958,-217.975091,0.00021917,2]
[366090468,1750057846967,-151.0,0.00021917,2]
[366090470,1750057846976,-460.0,0.00021917,4]
[366090472,1750057846986,-361.99565201,0.00021917,4]
[366090474,1750057846995,-434.90078183,0.00021917,4]
[366090476,1750057847005,-460.0,0.00021917,4]
[366090478,1750057847014,-151.0,0.00021917,2]
[366090480,1750057847024,-151.0,0.00021917,2]
[366090482,1750057847033,-441.76301627,0.00021917,4]
[366090484,1750057847043,-460.0,0.00021917,4]
[366090486,1750057847052,-464.38731565,0.00021917,4]
[366090488,1750057847062,-440.0,0.00021917,4]
[366090490,1750057847071,-200.67303907,0.00021917,4]
[366090492,1750057847081,-151.0,0.00021917,2]
[366090494,1750057847091,-151.0,0.00021917,2]
[366090496,1750057847101,-151.0,0.00021917,2]
[366090498,1750057847111,-151.0,0.00021917,2]
[366090500,1750057847120,-431.61787933,0.00021917,4]
[366090502,1750057847129,-445.08955144,0.00021917,4]
[366090504,1750057847139,-460.0,0.00021917,4]
[366090506,1750057847148,-151.0,0.00021917,2]
[366090508,1750057847157,-151.0,0.00021917,2]
[366090510,1750057847167,-460.0,0.00021917,4]
[366090512,1750057847177,-151.0,0.00021917,2]
[366090514,1750057847188,-460.0,0.00021917,4]
[366090516,1750057847197,-401.50960434,0.00021917,4]
[366090517,1750057847207,-460.0,0.00021917,4]
[366090519,1750057847216,-460.0,0.00021917,4]
[366090521,1750057847226,-460.0,0.00021917,4]
[366090523,1750057847235,-151.0,0.00021917,2]
[366090525,1750057847247,-151.0,0.00021917,2]
[366090527,1750057847256,-460.0,0.00021917,4]
[366090529,1750057847266,-460.0,0.00021917,4]
[366090531,1750057847276,-460.0,0.00021917,4]
[366090533,1750057847285,-460.0,0.00021917,4]
[366090535,1750057847295,-453.49673907,0.00021917,4]
[366090537,1750057847305,-440.63080677,0.00021917,4]
[366090539,1750057847315,-460.0,0.00021917,4]
[366090541,1750057847325,-403.56339224,0.00021917,4]
[366090543,1750057847337,-151.0,0.00021917,2]
[366090545,1750057847346,-461.93319915,0.00021917,4]
[366090547,1750057847356,-151.0,0.00021917,2]
[366090549,1750057847367,-151.0,0.00021917,2]
[366090551,1750057847377,-460.0,0.00021917,4]
[366090553,1750057847387,-460.0,0.00021917,4]
[366090555,1750057847396,-437.03774725,0.00021917,4]
[366090557,1750057847406,-390.77126151,0.00021917,4]
[366090559,1750057847415,-151.0,0.00021917,2]
[366090561,1750057847424,-460.0,0.00021917,4]
[366090563,1750057847434,-158.038136,0.00021917,2]
[366090565,1750057847443,-433.97927757,0.00021917,4]
[366090567,1750057847453,-460.0,0.00021917,4]
[366090569,1750057847462,-446.10176699,0.00021917,4]
[366090571,1750057847472,-442.98511797,0.00021917,4]
[366090573,1750057847482,-460.0,0.00021917,4]
[366090575,1750057847492,-460.0,0.00021917,4]
[366090577,1750057847502,-460.0,0.00021917,4]
[366090579,1750057847512,-460.0,0.00021917,4]
[366090581,1750057847521,-441.64395579,0.00021917,4]
[366090583,1750057847531,-460.0,0.00021917,4]
[366090584,1750057847540,-432.3917907,0.00021917,4]
[366090587,1750057847550,-500.0,0.00021917,2]
[366090588,1750057847560,-460.0,0.00021917,4]
[366090590,1750057847569,-427.49896878,0.00021917,4]
[366090592,1750057847579,-454.70466085,0.00021917,4]
[366090594,1750057847589,-444.50342518,0.00021917,4]
[366090597,1750057847599,-460.0,0.00021917,4]
[366090599,1750057847611,-460.0,0.00021917,4]
[366090600,1750057847621,-460.0,0.00021917,4]
[366090603,1750057847631,-500.0,0.00021917,4]
[366090604,1750057847640,-500.0,0.00021917,4]
[366090606,1750057847651,-500.0,0.00021917,4]